[Event "Titled Tuesday Blitz May 24 Early 2022"]
[White "Gschnitzer, Adrian"]
[Black "Maghsoodloo, Parham"]
[WhiteFideId "1270337"]
[BlackFideId "12539929"]
[WhiteElo "2294"]
[BlackElo "2630"]
[Result "0-1"]
[Round "04"]
[TimeControl "180+1"]
[Date "2022.05.25"]
[WhiteClock "0:01:05"]
[BlackClock "0:01:50"]

1. e4 {[%clk 0:03:00]}  c5 {[%clk 0:02:59]} 2. Nf3 {[%clk 0:03:00]}  d6 {[%clk 0:02:59]} 3. d4 {[%clk 0:03:01]}  cxd4 {[%clk 0:02:59]} 4. Nxd4 {[%clk 0:03:02]}  Nf6 {[%clk 0:02:59]} 5. Nc3 {[%clk 0:03:02]}  a6 {[%clk 0:03:00]} 6. Bg5 {[%clk 0:03:03]}  Nbd7 {[%clk 0:02:59]} 7. f4 {[%clk 0:03:01]}  h6 {[%clk 0:02:59]} 8. Bxf6 {[%clk 0:02:59]}  Nxf6 {[%clk 0:02:59]} 9. e5 {[%clk 0:02:59]}  dxe5 {[%clk 0:02:52]} 10. fxe5 {[%clk 0:03:00]}  Nd5 {[%clk 0:02:52]} 11. e6 {[%clk 0:02:50]}  Nxc3 {[%clk 0:02:44]} 12. exf7+ {[%clk 0:02:44]}  Kxf7 {[%clk 0:02:43]} 13. Bc4+ {[%clk 0:02:20]}  e6 {[%clk 0:02:40]} 14. Qh5+ {[%clk 0:01:56]}  Kg8 {[%clk 0:02:25]} 15. bxc3 {[%clk 0:01:54]}  Qc7 {[%clk 0:02:24]} 16. Qe2 {[%clk 0:01:40]}  b5 {[%clk 0:02:16]} 17. Bxe6+ {[%clk 0:01:40]}  Bxe6 {[%clk 0:02:11]} 18. Qxe6+ {[%clk 0:01:41]}  Qf7 {[%clk 0:02:11]} 19. Qxf7+ {[%clk 0:01:39]}  Kxf7 {[%clk 0:02:11]} 20. O-O+ {[%clk 0:01:40]}  Kg6 {[%clk 0:02:12]} 21. Rae1 {[%clk 0:01:38]}  Rc8 {[%clk 0:02:12]} 22. Re6+ {[%clk 0:01:37]}  Kh7 {[%clk 0:02:12]} 23. Rf3 {[%clk 0:01:29]}  Rc4 {[%clk 0:01:55]} 24. Rxa6 {[%clk 0:01:22]}  Bc5 {[%clk 0:01:54]} 25. Ra5 {[%clk 0:01:05]}  Rxc3 {[%clk 0:01:50]} 0-1


[Site "https://www.chess.com"]

[Event "Titled Tuesday Blitz May 24 Early 2022"]
[White "Gu, Xiaobing"]
[Black "D`Arruda, Ricardo D."]
[WhiteFideId "8602611"]
[BlackFideId "100692"]
[WhiteElo "2174"]
[BlackElo "2495"]
[Result "0-1"]
[Round "04"]
[TimeControl "180+1"]
[Date "2022.05.25"]
[WhiteClock "0:00:54"]
[BlackClock "0:01:24"]

1. e4 {[%clk 0:02:54]}  c5 {[%clk 0:02:59]} 2. Nf3 {[%clk 0:02:52]}  Nc6 {[%clk 0:02:59]} 3. Bb5 {[%clk 0:02:51]}  e6 {[%clk 0:02:59]} 4. Bxc6 {[%clk 0:02:50]}  dxc6 {[%clk 0:02:58]} 5. O-O {[%clk 0:02:48]}  c4 {[%clk 0:02:58]} 6. Qe2 {[%clk 0:02:42]}  b5 {[%clk 0:02:55]} 7. b3 {[%clk 0:02:41]}  cxb3 {[%clk 0:02:55]} 8. axb3 {[%clk 0:02:41]}  Nf6 {[%clk 0:02:48]} 9. Bb2 {[%clk 0:02:40]}  Be7 {[%clk 0:02:48]} 10. d4 {[%clk 0:02:36]}  O-O {[%clk 0:02:47]} 11. Nbd2 {[%clk 0:02:35]}  Qc7 {[%clk 0:02:43]} 12. c4 {[%clk 0:02:23]}  a6 {[%clk 0:02:37]} 13. e5 {[%clk 0:02:07]}  Ne8 {[%clk 0:02:22]} 14. cxb5 {[%clk 0:02:01]}  cxb5 {[%clk 0:02:21]} 15. Rac1 {[%clk 0:01:54]}  Qd7 {[%clk 0:02:21]} 16. Ne4 {[%clk 0:01:53]}  Nc7 {[%clk 0:02:19]} 17. Neg5 {[%clk 0:01:20]}  h6 {[%clk 0:02:16]} 18. Qc2 {[%clk 0:01:14]}  hxg5 {[%clk 0:01:54]} 19. Qxc7 {[%clk 0:01:14]}  Ra7 {[%clk 0:01:51]} 20. Qc2 {[%clk 0:01:02]}  Bb7 {[%clk 0:01:48]} 21. Qd3 {[%clk 0:01:00]}  Bd5 {[%clk 0:01:31]} 22. Rc3 {[%clk 0:00:59]}  Rc8 {[%clk 0:01:29]} 23. Rfc1 {[%clk 0:00:58]}  Rac7 {[%clk 0:01:28]} 24. Qc2 {[%clk 0:00:54]}  Rxc3 {[%clk 0:01:24]} 0-1


[Site "https://www.chess.com"]

[Event "Titled Tuesday Blitz May 24 Early 2022"]
[White "Hakemi, Arman"]
[Black "Przybylski, Wojciech"]
[WhiteFideId "22520805"]
[BlackFideId "1117599"]
[WhiteElo "2115"]
[BlackElo "2133"]
[Result "1-0"]
[Round "04"]
[TimeControl "180+1"]
[Date "2022.05.25"]
[WhiteClock "0:01:21"]
[BlackClock "0:00:03"]

1. d4 {[%clk 0:02:57]}  d5 {[%clk 0:02:59]} 2. Nf3 {[%clk 0:02:57]}  Nf6 {[%clk 0:02:59]} 3. g3 {[%clk 0:02:56]}  Bg4 {[%clk 0:02:58]} 4. Bg2 {[%clk 0:02:56]}  Nbd7 {[%clk 0:02:58]} 5. O-O {[%clk 0:02:55]}  e6 {[%clk 0:02:58]} 6. c4 {[%clk 0:02:56]}  c6 {[%clk 0:02:58]} 7. Nc3 {[%clk 0:02:55]}  Be7 {[%clk 0:02:57]} 8. Qb3 {[%clk 0:02:55]}  Qb6 {[%clk 0:02:54]} 9. c5 {[%clk 0:02:55]}  Qc7 {[%clk 0:02:41]} 10. Bf4 {[%clk 0:02:55]}  Qc8 {[%clk 0:02:41]} 11. Rfe1 {[%clk 0:02:50]}  O-O {[%clk 0:02:39]} 12. e4 {[%clk 0:02:50]}  dxe4 {[%clk 0:02:38]} 13. Nxe4 {[%clk 0:02:51]}  Nxe4 {[%clk 0:02:38]} 14. Rxe4 {[%clk 0:02:52]}  Nf6 {[%clk 0:02:36]} 15. Ree1 {[%clk 0:02:51]}  Nd5 {[%clk 0:02:36]} 16. Bd2 {[%clk 0:02:51]}  Rd8 {[%clk 0:02:25]} 17. Ne5 {[%clk 0:02:50]}  Bf5 {[%clk 0:02:25]} 18. h4 {[%clk 0:02:45]}  Nf6 {[%clk 0:02:19]} 19. Be3 {[%clk 0:02:31]}  h6 {[%clk 0:02:18]} 20. Rad1 {[%clk 0:02:31]}  Nd5 {[%clk 0:02:17]} 21. Bc1 {[%clk 0:02:28]}  b5 {[%clk 0:02:06]} 22. Qf3 {[%clk 0:02:22]}  f6 {[%clk 0:01:45]} 23. Ng4 {[%clk 0:02:16]}  e5 {[%clk 0:01:36]} 24. Ne3 {[%clk 0:02:06]}  Be6 {[%clk 0:01:23]} 25. dxe5 {[%clk 0:02:01]}  fxe5 {[%clk 0:01:23]} 26. Nxd5 {[%clk 0:01:46]}  cxd5 {[%clk 0:01:22]} 27. Rxe5 {[%clk 0:01:45]}  Bxc5 {[%clk 0:01:04]} 28. Rde1 {[%clk 0:01:35]}  Rf8 {[%clk 0:00:59]} 29. Bf4 {[%clk 0:01:32]}  Bf7 {[%clk 0:00:51]} 30. Rc1 {[%clk 0:01:31]}  Be6 {[%clk 0:00:04]} 31. Rxe6 {[%clk 0:01:21]}  Qxe6 {[%clk 0:00:04]} 32. Qxd5 {[%clk 0:01:22]}  Rae8 {[%clk 0:00:02]} 33. Qxe6+ {[%clk 0:01:22]}  Rxe6 {[%clk 0:00:02]} 34. Bd5 {[%clk 0:01:22]}  Bxf2+ {[%clk 0:00:02]} 35. Kxf2 {[%clk 0:01:23]}  Kf7 {[%clk 0:00:02]} 36. Rc6 {[%clk 0:01:21]}  Re8 {[%clk 0:00:02]} 37. Rxe6 {[%clk 0:01:19]}  Rxe6 {[%clk 0:00:02]} 38. Bxe6+ {[%clk 0:01:20]}  Kxe6 {[%clk 0:00:03]} 39. Kf3 {[%clk 0:01:20]}  Kf5 {[%clk 0:00:03]} 40. g4+ {[%clk 0:01:21]}  Ke6 {[%clk 0:00:03]} 41. Ke4 {[%clk 0:01:21]}  g6 {[%clk 0:00:03]} 42. Bxh6 {[%clk 0:01:21]} 1-0


[Site "https://www.chess.com"]

[Event "Titled Tuesday Blitz May 24 Early 2022"]
[White "Hart, Braeden"]
[Black "Petre, Nad-Titus"]
[WhiteFideId "30962587"]
[BlackFideId "1204165"]
[WhiteElo "2392"]
[BlackElo "2354"]
[Result "0-1"]
[Round "04"]
[TimeControl "180+1"]
[Date "2022.05.25"]
[WhiteClock "0:00:13"]
[BlackClock "0:00:14"]

1. e4 {[%clk 0:03:00]}  c6 {[%clk 0:02:59]} 2. Ne2 {[%clk 0:03:00]}  d5 {[%clk 0:02:59]} 3. e5 {[%clk 0:03:01]}  c5 {[%clk 0:02:55]} 4. b4 {[%clk 0:03:01]}  b6 {[%clk 0:02:48]} 5. c3 {[%clk 0:02:52]}  e6 {[%clk 0:02:41]} 6. bxc5 {[%clk 0:02:52]}  bxc5 {[%clk 0:02:38]} 7. d4 {[%clk 0:02:52]}  Ne7 {[%clk 0:02:33]} 8. Ng3 {[%clk 0:02:51]}  Qa5 {[%clk 0:02:23]} 9. Bd2 {[%clk 0:02:38]}  c4 {[%clk 0:02:22]} 10. Be2 {[%clk 0:02:36]}  Bd7 {[%clk 0:02:20]} 11. O-O {[%clk 0:02:36]}  Ba4 {[%clk 0:02:20]} 12. Qc1 {[%clk 0:02:31]}  Nbc6 {[%clk 0:02:12]} 13. f4 {[%clk 0:02:29]}  g6 {[%clk 0:02:10]} 14. Na3 {[%clk 0:02:25]}  h5 {[%clk 0:02:09]} 15. Nc2 {[%clk 0:02:12]}  h4 {[%clk 0:02:05]} 16. Nh1 {[%clk 0:02:12]}  Nf5 {[%clk 0:02:05]} 17. Ne3 {[%clk 0:02:11]}  Nxe3 {[%clk 0:01:53]} 18. Bxe3 {[%clk 0:02:12]}  Ne7 {[%clk 0:01:52]} 19. Nf2 {[%clk 0:02:05]}  Nf5 {[%clk 0:01:52]} 20. Ng4 {[%clk 0:02:06]}  Be7 {[%clk 0:01:50]} 21. Bd2 {[%clk 0:01:58]}  Kf8 {[%clk 0:01:47]} 22. Be1 {[%clk 0:01:51]}  Kg7 {[%clk 0:01:46]} 23. Ne3 {[%clk 0:01:51]}  Nxe3 {[%clk 0:01:36]} 24. Qxe3 {[%clk 0:01:52]}  Bc2 {[%clk 0:01:36]} 25. g3 {[%clk 0:01:37]}  hxg3 {[%clk 0:01:29]} 26. hxg3 {[%clk 0:01:38]}  Rab8 {[%clk 0:01:27]} 27. Qc1 {[%clk 0:01:25]}  Be4 {[%clk 0:01:20]} 28. Bf3 {[%clk 0:01:25]}  Ba3 {[%clk 0:01:19]} 29. Qe3 {[%clk 0:01:22]}  Bd3 {[%clk 0:01:19]} 30. Rf2 {[%clk 0:01:20]}  Bb2 {[%clk 0:01:16]} 31. Rd1 {[%clk 0:01:20]}  Bxc3 {[%clk 0:01:16]} 32. g4 {[%clk 0:01:11]}  Rh3 {[%clk 0:01:03]} 33. f5 {[%clk 0:01:04]}  Bxe1 {[%clk 0:00:37]} 34. f6+ {[%clk 0:01:03]}  Kg8 {[%clk 0:00:35]} 35. Rxe1 {[%clk 0:01:03]}  Be4 {[%clk 0:00:30]} 36. Kg2 {[%clk 0:00:55]}  Rxf3 {[%clk 0:00:28]} 37. Rxf3 {[%clk 0:00:56]}  Rb2+ {[%clk 0:00:27]} 38. Re2 {[%clk 0:00:53]}  Rxe2+ {[%clk 0:00:21]} 39. Qxe2 {[%clk 0:00:52]}  Qc3 {[%clk 0:00:21]} 40. Kg3 {[%clk 0:00:50]}  Bxf3 {[%clk 0:00:19]} 41. Qxf3 {[%clk 0:00:50]}  Qxd4 {[%clk 0:00:19]} 42. Qe2 {[%clk 0:00:42]}  c3 {[%clk 0:00:18]} 43. Kh4 {[%clk 0:00:22]}  g5+ {[%clk 0:00:15]} 44. Kh5 {[%clk 0:00:18]}  Qe4 {[%clk 0:00:14]} 45. Qb5 {[%clk 0:00:13]}  Qg6# {[%clk 0:00:14]} 0-1


[Site "https://www.chess.com"]

[Event "Titled Tuesday Blitz May 24 Early 2022"]
[White "Hasangatin, Ramil"]
[Black "Mestnikov, Aisen"]
[WhiteFideId "4122160"]
[BlackFideId "34130117"]
[WhiteElo "2399"]
[BlackElo "2027"]
[Result "1-0"]
[Round "04"]
[TimeControl "180+1"]
[Date "2022.05.25"]
[WhiteClock "0:02:16"]
[BlackClock "0:00:39"]

1. d4 {[%clk 0:03:00]}  Nf6 {[%clk 0:02:59]} 2. Nc3 {[%clk 0:03:01]}  d5 {[%clk 0:02:58]} 3. Bg5 {[%clk 0:03:02]}  Ne4 {[%clk 0:02:58]} 4. Nxe4 {[%clk 0:03:01]}  dxe4 {[%clk 0:02:59]} 5. c3 {[%clk 0:03:02]}  h6 {[%clk 0:02:58]} 6. Bf4 {[%clk 0:03:01]}  Nd7 {[%clk 0:02:42]} 7. e3 {[%clk 0:02:58]}  g5 {[%clk 0:02:41]} 8. Bg3 {[%clk 0:02:58]}  Bg7 {[%clk 0:02:42]} 9. h4 {[%clk 0:02:51]}  Nf6 {[%clk 0:02:30]} 10. hxg5 {[%clk 0:02:51]}  hxg5 {[%clk 0:02:31]} 11. Rxh8+ {[%clk 0:02:52]}  Bxh8 {[%clk 0:02:32]} 12. Be5 {[%clk 0:02:53]}  Bf5 {[%clk 0:02:15]} 13. Qb3 {[%clk 0:02:52]}  Qc8 {[%clk 0:02:13]} 14. Ne2 {[%clk 0:02:52]}  c6 {[%clk 0:02:04]} 15. Ng3 {[%clk 0:02:51]}  Bg6 {[%clk 0:01:53]} 16. Be2 {[%clk 0:02:50]}  Bg7 {[%clk 0:01:41]} 17. O-O-O {[%clk 0:02:49]}  Kf8 {[%clk 0:01:36]} 18. Rh1 {[%clk 0:02:42]}  Ng4 {[%clk 0:01:06]} 19. Bxg7+ {[%clk 0:02:38]}  Kxg7 {[%clk 0:01:07]} 20. Bxg4 {[%clk 0:02:29]}  Qxg4 {[%clk 0:01:08]} 21. Qxb7 {[%clk 0:02:28]}  Re8 {[%clk 0:00:47]} 22. Qxc6 {[%clk 0:02:27]}  f5 {[%clk 0:00:47]} 23. Qe6 {[%clk 0:02:16]}  f4 {[%clk 0:00:39]} 24. Qxg4 {[%clk 0:02:16]} 1-0


[Site "https://www.chess.com"]

[Event "Titled Tuesday Blitz May 24 Early 2022"]
[White "Karolczuk, Iwo"]
[Black "Pourkashiyan, Atousa"]
[WhiteFideId "21816972"]
[BlackFideId "12502014"]
[WhiteElo "2258"]
[BlackElo "2247"]
[Result "1-0"]
[Round "04"]
[TimeControl "180+1"]
[Date "2022.05.25"]
[WhiteClock "0:00:09"]
[BlackClock "0:00:12"]

1. e4 {[%clk 0:03:00]}  e5 {[%clk 0:02:52]} 2. Nf3 {[%clk 0:03:00]}  Nf6 {[%clk 0:02:51]} 3. Nc3 {[%clk 0:02:50]}  Nc6 {[%clk 0:02:48]} 4. Bb5 {[%clk 0:02:44]}  Bb4 {[%clk 0:02:45]} 5. d3 {[%clk 0:02:36]}  Nd4 {[%clk 0:02:36]} 6. Bc4 {[%clk 0:02:29]}  d6 {[%clk 0:02:20]} 7. a3 {[%clk 0:02:25]}  Ba5 {[%clk 0:02:17]} 8. Nxd4 {[%clk 0:02:05]}  exd4 {[%clk 0:02:16]} 9. b4 {[%clk 0:02:05]}  dxc3 {[%clk 0:02:16]} 10. bxa5 {[%clk 0:02:05]}  O-O {[%clk 0:02:15]} 11. O-O {[%clk 0:02:04]}  d5 {[%clk 0:02:15]} 12. exd5 {[%clk 0:02:01]}  Nxd5 {[%clk 0:02:16]} 13. Qf3 {[%clk 0:01:58]}  c6 {[%clk 0:02:10]} 14. Qg3 {[%clk 0:01:49]}  Kh8 {[%clk 0:02:05]} 15. Be3 {[%clk 0:01:29]}  Nxe3 {[%clk 0:01:33]} 16. fxe3 {[%clk 0:01:30]}  Qxa5 {[%clk 0:01:33]} 17. Rxf7 {[%clk 0:01:08]}  Rxf7 {[%clk 0:01:33]} 18. Bxf7 {[%clk 0:01:09]}  Bd7 {[%clk 0:01:33]} 19. Qd6 {[%clk 0:01:01]}  Bg4 {[%clk 0:01:25]} 20. Rf1 {[%clk 0:00:59]}  Qd8 {[%clk 0:00:42]} 21. Qb4 {[%clk 0:00:54]}  Qd7 {[%clk 0:00:23]} 22. Qxc3 {[%clk 0:00:38]}  h6 {[%clk 0:00:22]} 23. Qe5 {[%clk 0:00:30]}  Rf8 {[%clk 0:00:22]} 24. Bg6 {[%clk 0:00:27]}  Rxf1+ {[%clk 0:00:21]} 25. Kxf1 {[%clk 0:00:28]}  Qd8 {[%clk 0:00:16]} 26. Kg1 {[%clk 0:00:15]}  Qf8 {[%clk 0:00:15]} 27. h3 {[%clk 0:00:15]}  Be2 {[%clk 0:00:15]} 28. Kh2 {[%clk 0:00:08]}  Bd1 {[%clk 0:00:15]} 29. c4 {[%clk 0:00:07]}  b6 {[%clk 0:00:14]} 30. d4 {[%clk 0:00:07]}  Bb3 {[%clk 0:00:12]} 31. Bd3 {[%clk 0:00:07]}  a5 {[%clk 0:00:11]} 32. Qe4 {[%clk 0:00:07]}  Kg8 {[%clk 0:00:10]} 33. Qxc6 {[%clk 0:00:06]}  Qb8+ {[%clk 0:00:09]} 34. Kg1 {[%clk 0:00:06]}  Qf8 {[%clk 0:00:09]} 35. Qxb6 {[%clk 0:00:04]}  Ba2 {[%clk 0:00:08]} 36. c5 {[%clk 0:00:04]}  Qe7 {[%clk 0:00:08]} 37. Qb8+ {[%clk 0:00:04]}  Kf7 {[%clk 0:00:07]} 38. Qf4+ {[%clk 0:00:04]}  Kg8 {[%clk 0:00:07]} 39. c6 {[%clk 0:00:04]}  Qa7 {[%clk 0:00:07]} 40. c7 {[%clk 0:00:04]}  Qb7 {[%clk 0:00:07]} 41. Bf5 {[%clk 0:00:04]}  Bd5 {[%clk 0:00:06]} 42. c8=Q+ {[%clk 0:00:04]}  Qxc8 {[%clk 0:00:07]} 43. Bxc8 {[%clk 0:00:05]}  Bf7 {[%clk 0:00:07]} 44. Qc7 {[%clk 0:00:06]}  g5 {[%clk 0:00:07]} 45. Bb7 {[%clk 0:00:06]}  Kg7 {[%clk 0:00:08]} 46. d5 {[%clk 0:00:07]}  Kf6 {[%clk 0:00:09]} 47. d6 {[%clk 0:00:08]}  Ke5 {[%clk 0:00:10]} 48. Qe7+ {[%clk 0:00:08]}  Kf5 {[%clk 0:00:10]} 49. Qxf7+ {[%clk 0:00:08]}  Ke5 {[%clk 0:00:11]} 50. d7 {[%clk 0:00:08]}  Kd6 {[%clk 0:00:12]} 51. d8=Q+ {[%clk 0:00:09]}  Kc5 {[%clk 0:00:13]} 52. Qdc7+ {[%clk 0:00:09]}  Kb5 {[%clk 0:00:12]} 53. Qfc4# {[%clk 0:00:09]} 1-0


[Site "https://www.chess.com"]

[Event "Titled Tuesday Blitz May 24 Early 2022"]
[White "Kejzar, Petra"]
[Black "Buscar, Michael"]
[WhiteFideId "14610213"]
[BlackFideId "2603616"]
[WhiteElo "2004"]
[BlackElo "2010"]
[Result "1-0"]
[Round "04"]
[TimeControl "180+1"]
[Date "2022.05.25"]
[WhiteClock "0:00:30"]
[BlackClock "0:00:14"]

1. c4 {[%clk 0:03:00]}  e5 {[%clk 0:02:50]} 2. Nc3 {[%clk 0:02:59]}  Nf6 {[%clk 0:02:50]} 3. g3 {[%clk 0:02:58]}  d5 {[%clk 0:02:49]} 4. cxd5 {[%clk 0:02:57]}  Nxd5 {[%clk 0:02:49]} 5. Bg2 {[%clk 0:02:58]}  Be6 {[%clk 0:02:49]} 6. d3 {[%clk 0:02:53]}  Nc6 {[%clk 0:02:43]} 7. Nf3 {[%clk 0:02:53]}  f6 {[%clk 0:02:42]} 8. O-O {[%clk 0:02:53]}  Qd7 {[%clk 0:02:38]} 9. d4 {[%clk 0:02:53]}  Nxc3 {[%clk 0:01:58]} 10. bxc3 {[%clk 0:02:54]}  exd4 {[%clk 0:01:58]} 11. Nxd4 {[%clk 0:02:49]}  Nxd4 {[%clk 0:01:55]} 12. cxd4 {[%clk 0:02:46]}  c6 {[%clk 0:01:54]} 13. e4 {[%clk 0:02:43]}  Be7 {[%clk 0:01:45]} 14. d5 {[%clk 0:02:40]}  cxd5 {[%clk 0:01:40]} 15. exd5 {[%clk 0:02:41]}  Bg4 {[%clk 0:01:38]} 16. Qb3 {[%clk 0:02:34]}  O-O {[%clk 0:01:35]} 17. Re1 {[%clk 0:02:29]}  Kh8 {[%clk 0:01:27]} 18. Bf4 {[%clk 0:02:24]}  Rfd8 {[%clk 0:01:21]} 19. h3 {[%clk 0:02:18]}  Bf5 {[%clk 0:01:17]} 20. g4 {[%clk 0:02:14]}  Bg6 {[%clk 0:01:12]} 21. Rad1 {[%clk 0:01:58]}  Rac8 {[%clk 0:01:09]} 22. Qe3 {[%clk 0:01:45]}  Bc5 {[%clk 0:01:06]} 23. Qd2 {[%clk 0:01:44]}  Bd6 {[%clk 0:00:58]} 24. Bxd6 {[%clk 0:01:42]}  Qxd6 {[%clk 0:00:59]} 25. Re6 {[%clk 0:01:41]}  Qd7 {[%clk 0:00:49]} 26. Qe2 {[%clk 0:01:31]}  Rc2 {[%clk 0:00:46]} 27. Qe3 {[%clk 0:01:06]}  Rxa2 {[%clk 0:00:41]} 28. Re7 {[%clk 0:01:06]}  Qa4 {[%clk 0:00:41]} 29. Re1 {[%clk 0:01:04]}  h6 {[%clk 0:00:27]} 30. Rxb7 {[%clk 0:01:02]}  Rd7 {[%clk 0:00:23]} 31. Rb8+ {[%clk 0:00:59]}  Kh7 {[%clk 0:00:24]} 32. Qe6 {[%clk 0:00:45]}  Bf7 {[%clk 0:00:18]} 33. Be4+ {[%clk 0:00:38]}  g6 {[%clk 0:00:14]} 34. Qxf6 {[%clk 0:00:30]} 1-0


[Site "https://www.chess.com"]

[Event "Titled Tuesday Blitz May 24 Early 2022"]
[White "Khamdamova, Afruza"]
[Black "Quirke, Jeffrey"]
[WhiteFideId "14210444"]
[BlackFideId "2013029"]
[WhiteElo "1660"]
[BlackElo "2223"]
[Result "0-1"]
[Round "04"]
[TimeControl "180+1"]
[Date "2022.05.25"]
[WhiteClock "0:00:17"]
[BlackClock "0:00:43"]

1. e4 {[%clk 0:03:00]}  c5 {[%clk 0:02:58]} 2. Nf3 {[%clk 0:03:00]}  e6 {[%clk 0:02:58]} 3. d4 {[%clk 0:03:00]}  cxd4 {[%clk 0:02:59]} 4. Nxd4 {[%clk 0:03:01]}  a6 {[%clk 0:03:00]} 5. Bd3 {[%clk 0:03:00]}  Bc5 {[%clk 0:02:58]} 6. Be3 {[%clk 0:02:59]}  d6 {[%clk 0:02:57]} 7. O-O {[%clk 0:02:58]}  Nf6 {[%clk 0:02:57]} 8. Nc3 {[%clk 0:02:55]}  Nbd7 {[%clk 0:02:56]} 9. a4 {[%clk 0:02:50]}  O-O {[%clk 0:02:53]} 10. h3 {[%clk 0:02:43]}  Ne5 {[%clk 0:02:36]} 11. f4 {[%clk 0:02:32]}  Nxd3 {[%clk 0:02:36]} 12. Qxd3 {[%clk 0:02:31]}  d5 {[%clk 0:02:32]} 13. e5 {[%clk 0:02:26]}  Nd7 {[%clk 0:02:27]} 14. Kh2 {[%clk 0:02:24]}  Be7 {[%clk 0:02:17]} 15. Rae1 {[%clk 0:02:19]}  Nc5 {[%clk 0:02:16]} 16. Qe2 {[%clk 0:02:11]}  f5 {[%clk 0:02:11]} 17. Rd1 {[%clk 0:01:57]}  Bd7 {[%clk 0:02:04]} 18. b3 {[%clk 0:01:53]}  Rc8 {[%clk 0:02:02]} 19. Nb1 {[%clk 0:01:43]}  Ne4 {[%clk 0:02:02]} 20. Nd2 {[%clk 0:01:42]}  Kh8 {[%clk 0:01:39]} 21. Nxe4 {[%clk 0:01:41]}  fxe4 {[%clk 0:01:39]} 22. Qg4 {[%clk 0:01:39]}  Qe8 {[%clk 0:01:31]} 23. Nxe6 {[%clk 0:01:06]}  Qf7 {[%clk 0:01:23]} 24. f5 {[%clk 0:00:56]}  Bxe6 {[%clk 0:01:17]} 25. fxe6 {[%clk 0:00:56]}  Qxf1 {[%clk 0:01:18]} 26. Rxf1 {[%clk 0:00:56]}  Rxf1 {[%clk 0:01:19]} 27. Bg5 {[%clk 0:00:52]}  Re8 {[%clk 0:00:50]} 28. Bxe7 {[%clk 0:00:49]}  Rxe7 {[%clk 0:00:51]} 29. Qe2 {[%clk 0:00:28]}  Rf8 {[%clk 0:00:50]} 30. Qd2 {[%clk 0:00:25]}  Rd8 {[%clk 0:00:47]} 31. Qg5 {[%clk 0:00:24]}  Rde8 {[%clk 0:00:46]} 32. Qd2 {[%clk 0:00:22]}  Rxe6 {[%clk 0:00:46]} 33. Qxd5 {[%clk 0:00:21]}  Rxe5 {[%clk 0:00:46]} 34. Qxb7 {[%clk 0:00:18]}  e3 {[%clk 0:00:47]} 35. Qb4 {[%clk 0:00:17]}  e2 {[%clk 0:00:47]} 36. Qe1 {[%clk 0:00:17]}  Rd5 {[%clk 0:00:43]} 0-1


[Site "https://www.chess.com"]

[Event "Titled Tuesday Blitz May 24 Early 2022"]
[White "Kim, Sergey"]
[Black "Meunier-Pion, Jean"]
[WhiteFideId "13700570"]
[BlackFideId "20685327"]
[WhiteElo "2543"]
[BlackElo "2124"]
[Result "1-0"]
[Round "04"]
[TimeControl "180+1"]
[Date "2022.05.25"]
[WhiteClock "0:01:28"]
[BlackClock "0:00:02"]

1. d4 {[%clk 0:03:00]}  Nf6 {[%clk 0:02:58]} 2. c4 {[%clk 0:03:01]}  e6 {[%clk 0:02:56]} 3. Nc3 {[%clk 0:03:01]}  Bb4 {[%clk 0:02:56]} 4. Qc2 {[%clk 0:03:01]}  d5 {[%clk 0:02:52]} 5. a3 {[%clk 0:03:01]}  Bxc3+ {[%clk 0:02:52]} 6. Qxc3 {[%clk 0:03:02]}  O-O {[%clk 0:02:51]} 7. Nf3 {[%clk 0:03:02]}  b6 {[%clk 0:02:49]} 8. cxd5 {[%clk 0:02:59]}  Nxd5 {[%clk 0:02:47]} 9. Qc2 {[%clk 0:02:59]}  Ba6 {[%clk 0:02:45]} 10. e4 {[%clk 0:02:56]}  Bxf1 {[%clk 0:02:43]} 11. Kxf1 {[%clk 0:02:57]}  Ne7 {[%clk 0:02:36]} 12. Bg5 {[%clk 0:02:52]}  h6 {[%clk 0:02:31]} 13. Bh4 {[%clk 0:02:49]}  Qd7 {[%clk 0:02:18]} 14. Rc1 {[%clk 0:02:45]}  c5 {[%clk 0:01:55]} 15. dxc5 {[%clk 0:02:42]}  Rc8 {[%clk 0:01:54]} 16. b4 {[%clk 0:02:41]}  bxc5 {[%clk 0:01:54]} 17. bxc5 {[%clk 0:02:39]}  Na6 {[%clk 0:01:52]} 18. Ne5 {[%clk 0:02:32]}  Qb5+ {[%clk 0:01:50]} 19. Qe2 {[%clk 0:02:28]}  Rxc5 {[%clk 0:01:23]} 20. Qxb5 {[%clk 0:02:25]}  Rxb5 {[%clk 0:01:23]} 21. Bxe7 {[%clk 0:02:12]}  Rxe5 {[%clk 0:01:22]} 22. f3 {[%clk 0:02:12]}  f5 {[%clk 0:01:15]} 23. Bd6 {[%clk 0:02:09]}  Rb5 {[%clk 0:01:11]} 24. e5 {[%clk 0:02:09]}  Rb2 {[%clk 0:01:06]} 25. h4 {[%clk 0:02:05]}  Kf7 {[%clk 0:00:57]} 26. h5 {[%clk 0:02:03]}  Nb8 {[%clk 0:00:31]} 27. Rc7+ {[%clk 0:01:58]}  Kg8 {[%clk 0:00:31]} 28. Rc8+ {[%clk 0:01:57]}  Kh7 {[%clk 0:00:29]} 29. Rh4 {[%clk 0:01:57]}  a5 {[%clk 0:00:20]} 30. Rhc4 {[%clk 0:01:47]}  a4 {[%clk 0:00:12]} 31. Kg1 {[%clk 0:01:42]}  Ra5 {[%clk 0:00:07]} 32. Rxb8 {[%clk 0:01:39]}  Rxb8 {[%clk 0:00:03]} 33. Bxb8 {[%clk 0:01:39]}  g6 {[%clk 0:00:03]} 34. Rc7+ {[%clk 0:01:38]}  Kg8 {[%clk 0:00:04]} 35. hxg6 {[%clk 0:01:38]}  h5 {[%clk 0:00:03]} 36. Rb7 {[%clk 0:01:33]}  f4 {[%clk 0:00:03]} 37. Bd6 {[%clk 0:01:32]}  Rd5 {[%clk 0:00:02]} 38. Kh2 {[%clk 0:01:30]}  h4 {[%clk 0:00:02]} 39. Kh3 {[%clk 0:01:30]}  Rd1 {[%clk 0:00:01]} 40. Kxh4 {[%clk 0:01:30]}  Rg1 {[%clk 0:00:02]} 41. Kg5 {[%clk 0:01:30]}  Rxg2+ {[%clk 0:00:02]} 42. Kf6 {[%clk 0:01:28]} 1-0


[Site "https://www.chess.com"]